bitfinex-derivatives/quotes_ETHF0:USTF0_20230402
["timestamp","ask_amount","ask_price","bid_price","bid_amount"]
[1680475864535,0.48075514,1791.7,1790.7,8.0294]
[1680475864834,4.3258,1791.3,1790.9,1.67748718]
[1680475865129,4.3258,1791.3,1790.8,1.118]
[1680475865723,4.3258,1791.3,1790.9,1.6774617]
[1680475865924,4.3258,1791.3,1790.8,1.118]
[1680475866120,3.2078,1791.3,1791.0,1.118]
[1680475867932,3.78680365,1791.5,1791.2,1.118]
[1680475868128,1.118,1791.6,1791.2,1.118]
[1680475868328,3.2078,1791.5,1791.2,1.118]
[1680475868539,6.2,1791.4,1791.3,1.85554528]
[1680475870229,6.2,1791.4,1790.7,4.3258]
[1680475870230,7.309,1791.4,1790.7,4.3258]
[1680475870541,4.3168,1791.2,1790.7,4.3258]
[1680475871043,0.58046313,1791.2,1790.8,1.118]
[1680475871226,0.58046313,1791.3,1791.0,1.118]
[1680475871430,10.54096221,1791.4,1791.0,1.118]
[1680475871632,3.2078,1791.2,1791.0,1.118]
[1680475871835,0.55269908,1791.4,1791.1,2.236]
[1680475872049,2.2340383,1791.6,1791.3,4.3258]
[1680475872340,0.58046313,1791.6,1791.5,1.111]
[1680475872827,6.78046313,1791.6,1791.5,1.111]
[1680475873640,0.58046313,1791.6,1791.5,2.229]
[1680475873936,0.48075514,1791.7,1791.6,1.0]
[1680475874137,0.48075514,1791.7,1791.6,2.111]
[1680475874437,1.06121827,1791.7,1791.6,2.111]
[1680475875540,0.58172201,1791.9,1791.7,1.061]
[1680475875742,1.23689198,1792.0,1791.8,10.4838]
[1680475875937,0.68172201,1792.0,1791.9,2.236]
[1680475876135,0.68172201,1792.0,1791.9,2.118]
[1680475876344,0.68172201,1792.0,1791.9,1.118]
[1680475876642,0.1,1792.0,1791.9,1.118]
[1680475877042,14.36613653,1792.0,1791.9,4.3258]
[1680475877337,0.97392949,1792.0,1791.9,4.3258]
[1680475877845,0.97392949,1792.0,1791.9,6.41072034]
[1680475878448,1.56819712,1792.0,1791.9,6.41072034]
[1680475878645,1.4597416,1792.1,1791.9,7.52872034]
[1680475878952,3.44015485,1792.3,1792.0,2.236]
[1680475878953,1.4597416,1792.3,1792.0,2.236]
[1680475879149,1.4597416,1792.3,1792.2,5.4348]
[1680475879541,1.4597416,1792.4,1792.2,5.4348]
[1680475879736,1.4597416,1792.5,1792.3,3.225]
[1680475880041,1.4597416,1792.6,1792.4,5.4438]
[1680475880240,1.4597416,1792.6,1792.5,2.225]
[1680475880641,1.4597416,1792.6,1792.4,1.0]
[1680475880838,1.4597416,1792.5,1792.4,1.0]
[1680475881141,1.4597416,1792.5,1792.4,2.118]
[1680475881340,8.45168067,1792.6,1792.4,2.118]
[1680475881547,8.45168067,1792.6,1792.4,1.118]
[1680475881548,7.7597416,1792.6,1792.4,1.118]
[1680475882050,7.7597416,1792.6,1792.5,1.118]
[1680475882244,8.45168321,1792.6,1792.5,1.118]
[1680475883538,7.7597416,1792.6,1792.5,1.118]
[1680475884644,6.3,1792.6,1792.5,1.118]
[1680475885049,6.3,1792.6,1792.5,2.118]
[1680475885246,6.3,1792.6,1792.5,4.22414297]
[1680475885743,6.3,1792.6,1792.5,5.34214297]
[1680475886147,1.4597416,1792.8,1792.5,5.34214297]
[1680475886351,1.4597416,1792.8,1792.7,1.118]
[1680475886645,7.7597416,1792.8,1792.7,1.118]
[1680475887041,10.9675416,1792.8,1792.7,1.118]
[1680475887447,9.5078,1792.8,1792.7,1.118]
[1680475888851,6.3,1792.8,1792.7,1.118]
[1680475890443,2.21492994,1792.9,1792.7,1.118]
[1680475890644,4.8175416,1793.0,1792.7,1.118]
[1680475890853,6.3,1792.9,1792.7,1.118]
[1680475891055,3.2078,1792.8,1792.7,1.118]
[1680475891647,5.3188,1792.8,1792.5,2.10614297]
[1680475891845,3.2078,1792.6,1792.3,1.118]
[1680475892060,0.58101955,1792.5,1792.2,1.118]
[1680475895456,0.00707813,1792.6,1792.4,2.225]
[1680475895654,2.35363352,1793.0,1792.5,5.4438]
[1680475895855,3.1,1792.9,1792.5,4.3258]
[1680475898562,5.3168,1792.8,1792.3,4.3258]
[1680475898758,3.2078,1792.6,1792.3,4.3258]
[1680475898959,3.2078,1792.6,1792.3,1.118]
[1680475900255,3.2078,1792.6,1792.4,1.83286443]
[1680475900657,3.2078,1792.6,1792.3,1.118]
[1680475901563,3.1,1792.5,1792.3,1.118]
[1680475902162,3.1,1792.5,1792.2,1.118]
[1680475906170,3.1,1792.5,1792.4,1.118]
[1680475906773,3.1,1792.5,1792.4,1.111]
[1680475907455,16.07863352,1793.0,1792.5,1.118]
[1680475907658,2.35363352,1793.0,1792.8,1.118]
[1680475908067,2.7,1792.9,1792.8,1.118]
[1680475908368,2.35363352,1793.0,1792.8,1.118]
[1680475908566,2.35363352,1793.0,1792.9,3.12821449]
[1680475908861,0.72138896,1793.0,1792.9,3.12821449]
[1680475910364,0.72138896,1793.0,1792.9,5.24621449]
[1680475910666,0.15,1793.0,1792.9,5.24621449]
[1680475911266,0.55755361,1793.2,1793.0,1.0]
[1680475911471,1.16128069,1793.4,1793.1,1.111]
[1680475911671,1.16128069,1793.4,1793.2,1.118]
[1680475912164,4.36908069,1793.4,1793.2,1.118]
[1680475915069,4.36908069,1793.4,1793.3,1.118]
[1680475915271,1.16128069,1793.4,1793.3,3.33972075]
[1680475915567,1.16128069,1793.4,1793.3,1.118]
[1680475917378,2.15140861,1793.4,1793.3,1.118]
[1680475918968,2.15140861,1793.4,1793.2,1.118]
[1680475919165,1.4597416,1793.3,1793.2,1.118]
[1680475919571,2.15143995,1793.3,1793.2,1.118]
[1680475919963,15.07623357,1793.3,1793.0,1.118]
[1680475920179,1.45530815,1793.1,1792.8,1.118]
[1680475920379,1.16431909,1793.0,1792.8,1.118]
[1680475920682,1.16431909,1793.0,1792.5,5.3258]
[1680475920683,1.16431909,1792.9,1792.6,1.118]
[1680475921072,1.16431909,1792.8,1792.6,1.118]
[1680475921473,1.16431909,1792.8,1792.3,4.2078]
[1680475921474,4.37211909,1792.8,1792.4,1.118]
[1680475921770,2.16431909,1792.7,1792.4,1.118]
[1680475922179,1.16431909,1792.7,1792.4,1.118]
[1680475922572,1.16431909,1792.6,1792.4,1.118]
[1680475922773,1.16431909,1792.7,1792.4,1.118]
[1680475922973,4.37211909,1792.6,1792.2,1.111]
[1680475923786,1.16431909,1792.5,1792.2,1.111]
[1680475926993,2.7,1792.4,1792.2,1.111]
[1680475927378,2.7,1792.4,1792.3,4.3258]
[1680475927582,1.16431909,1792.6,1792.3,4.3258]
[1680475927782,1.16431909,1792.7,1792.5,1.118]
[1680475928583,1.16431909,1792.6,1792.5,1.118]
[1680475929291,1.16431909,1792.7,1792.5,1.118]
[1680475930188,1.16431909,1792.7,1792.6,1.69339479]
[1680475932195,1.16431909,1792.7,1792.6,4.92939479]
[1680475932385,1.16431909,1793.0,1792.7,1.0]
[1680475932586,3.21467679,1793.1,1792.7,4.2078]
[1680475932587,1.16431909,1792.9,1792.7,4.2078]
[1680475932792,1.16431909,1792.9,1792.8,1.0]
[1680475933592,1.16431909,1793.0,1792.9,2.236]
[1680475933892,1.16431909,1793.1,1792.9,5.4368]
[1680475934092,1.16431909,1793.1,1793.0,2.118]
[1680475934794,1.16431909,1793.2,1793.0,3.236]
[1680475935092,1.16431909,1793.2,1793.1,5.3258]
[1680475936298,1.71072372,1793.3,1793.2,1.118]
[1680475936497,1.16515196,1793.3,1793.2,3.225]
[1680475937295,1.16515196,1793.4,1793.2,3.225]
[1680475937497,1.16515196,1793.4,1793.3,5.3258]
[1680475938396,1.16515196,1793.4,1793.3,1.118]
[1680475938596,1.16515196,1793.4,1793.3,4.3258]
[1680475939700,1.16515196,1793.4,1793.3,1.118]
[1680475940704,1.16515196,1793.4,1793.2,1.111]
[1680475940905,2.27415196,1793.3,1792.9,2.118]
[1680475941107,0.87345163,1793.2,1792.9,1.118]
[1680475941898,0.87345163,1793.0,1792.9,1.118]
[1680475942993,0.87345163,1793.0,1792.9,2.236]
[1680475943197,0.87345163,1793.1,1792.9,2.236]
[1680475943400,0.87345163,1793.1,1793.0,1.118]
[1680475943595,0.87362179,1793.1,1793.0,1.118]
[1680475943899,0.87361962,1793.1,1793.0,1.118]
[1680475944198,2.16515196,1793.1,1792.8,1.118]
[1680475944405,1.16515196,1793.1,1793.0,11.833]
[1680475944598,2.16515196,1793.1,1793.0,11.833]
[1680475944906,4.25806193,1793.1,1793.0,11.833]
[1680475945303,3.25806193,1793.1,1793.0,13.60063303]
[1680475945704,3.25806193,1793.1,1793.0,13.39763303]
[1680475946204,1.80275378,1793.1,1793.0,13.20543303]
[1680475946409,1.80275378,1793.1,1792.6,1.118]
[1680475946707,0.87399683,1792.8,1792.7,1.50523431]
[1680475946902,0.87399683,1792.8,1792.6,1.118]
[1680475947303,0.87399683,1792.9,1792.7,1.118]
[1680475947505,0.87399683,1792.9,1792.8,1.118]
[1680475947904,1.1653291,1792.9,1792.8,1.118]
[1680475948211,1.1653291,1792.9,1792.7,2.118]
[1680475948411,0.87429069,1792.8,1792.7,1.118]
[1680475950309,4.3731291,1792.9,1792.7,1.118]
[1680475950908,0.87463606,1792.8,1792.7,1.118]
[1680475951109,4.3731291,1792.9,1792.7,1.118]
[1680475951305,0.87463678,1792.8,1792.5,2.107]
[1680475951606,0.87463678,1792.9,1792.7,1.118]
[1680475951906,0.87463678,1792.9,1792.8,5.3258]
[1680475954012,0.87463678,1792.9,1792.8,6.7052403]
[1680475955210,2.03996588,1793.0,1792.9,1.107]
[1680475955411,0.87500129,1793.0,1792.9,2.225]
[1680475955803,0.87500129,1793.0,1792.9,1.107]
[1680475955804,1.1653291,1793.0,1792.9,1.107]
[1680475956007,0.87499785,1793.0,1792.9,1.107]
[1680475956210,1.1653291,1793.1,1792.9,1.107]
[1680475957410,0.87498462,1793.0,1792.9,1.107]
[1680475957810,1.1653291,1793.1,1792.9,1.107]
[1680475958716,1.1653291,1793.0,1792.9,1.107]
[1680475959120,0.69174076,1793.0,1792.8,1.3794403]
[1680475959309,2.14840214,1793.0,1792.8,1.3794403]
[1680475959511,1.16675816,1792.9,1792.7,1.111]
[1680475959815,1.45666138,1793.0,1792.8,1.37687307]
[1680475960012,1.16675802,1792.9,1792.7,1.111]
[1680475960207,2.14841574,1793.0,1792.8,1.37685794]
[1680475960406,1.16685667,1792.9,1792.7,1.111]
[1680475960712,1.16686524,1792.8,1792.7,1.111]
[1680475962121,1.16686524,1792.8,1792.6,1.118]
[1680475962317,0.87518581,1792.8,1792.6,1.118]
[1680475962516,0.87518581,1792.7,1792.6,1.118]
[1680475963615,0.87518581,1792.8,1792.6,1.118]
[1680475963817,0.87518581,1792.8,1792.5,3.2078]
[1680475964120,0.87518581,1792.6,1792.5,3.2078]
[1680475964317,0.87518581,1792.6,1792.5,4.3258]
[1680475967007,0.87518581,1792.7,1792.5,4.3258]
[1680475967212,2.04205105,1792.7,1792.6,1.118]
[1680475967518,2.04205105,1792.7,1792.1,3.2078]
[1680475967519,5.77346138,1792.7,1792.1,3.2078]
[1680475967709,0.87525021,1792.5,1792.1,3.2078]
[1680475967915,0.87525021,1792.4,1792.1,3.2078]
[1680475968219,0.87525021,1792.4,1792.2,1.118]
[1680475975221,0.87525021,1792.4,1792.3,1.04609964]
[1680475979917,1.16700029,1792.4,1792.3,1.04609964]
[1680475980113,2.27600029,1792.4,1792.3,1.04609964]
[1680475980417,1.16700029,1792.4,1792.1,4.3258]
[1680475980619,0.87474464,1792.3,1792.1,1.118]
[1680475980923,0.87474464,1792.3,1792.2,1.04592721]
[1680475980924,5.08254464,1792.3,1792.2,1.04592721]
[1680475981124,4.08254464,1792.3,1792.2,1.04592721]
[1680475981327,4.37480029,1792.3,1791.9,4.3258]
[1680475981630,0.87480107,1792.2,1791.9,4.3258]
[1680475981926,0.87480107,1792.2,1791.9,1.118]
[1680475982626,0.87480107,1792.1,1791.9,1.118]
[1680475983027,4.08260107,1792.1,1791.9,1.118]
[1680475983924,0.87480107,1792.1,1791.9,1.118]
[1680475984126,0.87480107,1792.2,1791.9,4.3258]
[1680475984431,0.87480107,1792.1,1791.9,1.118]
[1680475985325,4.08260107,1792.1,1791.9,1.118]
[1680475985525,4.08260107,1792.1,1791.7,4.3258]
[1680475986123,2.109,1792.0,1791.5,4.3258]
[1680475986429,1.109,1792.0,1791.5,4.3258]
[1680475986825,4.64438288,1792.1,1791.7,1.118]
[1680475987621,0.87480107,1792.0,1791.7,1.118]
[1680475989232,0.87480107,1792.0,1791.7,4.3258]
[1680475989535,0.56178181,1792.1,1791.9,4.3188]
[1680475989836,0.87480107,1792.2,1792.0,2.118]
[1680475990130,0.87480107,1792.2,1792.1,1.118]
[1680475990336,0.87480107,1792.2,1792.1,2.03390561]
[1680475990530,0.87480107,1792.3,1792.1,2.03390561]
[1680475990723,0.87480107,1792.4,1792.2,1.118]
[1680475990928,0.87480107,1792.4,1792.1,0.91590561]
[1680475990929,1.98380107,1792.3,1792.1,0.91590561]
[1680475991135,0.87480107,1792.2,1792.1,0.91590561]
[1680475991331,0.87480107,1792.2,1791.8,4.3258]
[1680475992139,4.3168,1792.3,1791.8,4.3258]
[1680475992140,0.87480107,1792.3,1792.1,1.118]
[1680475992323,0.87480107,1792.3,1792.2,1.111]
[1680475992730,0.87480107,1792.4,1792.2,1.111]
[1680476000947,0.87480107,1792.3,1792.2,1.111]
[1680476001145,0.87480107,1792.3,1792.0,4.3188]
[1680476001439,0.87480107,1792.3,1792.0,1.111]
[1680476002044,4.08260107,1792.2,1791.8,4.3258]
[1680476002244,0.87480107,1792.1,1791.8,4.3258]
[1680476005349,0.87480107,1792.1,1791.9,0.86068784]
[1680476005543,0.87480107,1792.1,1791.8,1.118]
[1680476006547,0.87480107,1792.0,1791.8,1.118]
[1680476007248,0.87480107,1792.0,1791.8,4.3258]
[1680476007445,0.87480107,1792.0,1791.8,1.118]
[1680476009048,0.87480107,1792.0,1791.8,4.3258]
[1680476009549,0.87480107,1792.0,1791.8,1.118]
[1680476009851,0.87619196,1792.3,1791.9,8.42503927]
[1680476010150,0.87619196,1792.3,1792.2,2.236]
[1680476010348,1.16700029,1792.4,1792.2,2.236]
[1680476010554,1.16700029,1792.4,1792.3,1.118]
[1680476012352,2.14857116,1792.5,1792.3,1.118]
[1680476012353,1.45666138,1792.5,1792.3,1.118]
[1680476012658,1.45666138,1792.5,1792.4,1.118]
[1680476012852,2.14856351,1792.5,1792.4,1.118]
[1680476014963,1.45666138,1792.5,1792.4,1.118]
[1680476015366,1.16861915,1792.5,1792.4,1.118]
[1680476017371,1.16861915,1792.5,1792.4,2.118]
[1680476017576,0.87623175,1792.6,1792.5,0.29171955]
[1680476017764,0.58411617,1792.6,1792.5,5.73551955]
[1680476018271,1.46034792,1792.7,1792.5,5.73551955]
[1680476018566,1.46034792,1792.7,1792.6,2.236]
[1680476018866,1.46034792,1792.7,1792.6,3.236]
[1680476019464,0.58411617,1792.7,1792.6,3.236]
[1680476019659,1.46034792,1792.8,1792.6,3.236]
[1680476019859,0.58411617,1792.8,1792.7,5.3258]
[1680476020263,0.58411617,1792.8,1792.7,6.8037444]
[1680476020961,0.58411617,1792.8,1792.7,7.9107444]
[1680476021161,1.46034792,1792.9,1792.7,7.9107444]
[1680476021362,0.58411617,1792.9,1792.8,3.236]
[1680476022369,0.58411617,1793.1,1792.9,1.0]
[1680476022672,0.58411617,1793.1,1793.0,4.3258]
[1680476023275,0.58411617,1793.2,1793.0,4.3258]
[1680476023569,0.58411617,1793.2,1793.1,2.118]
[1680476025575,2.02084355,1793.3,1793.1,2.118]
[1680476025871,2.02084355,1793.3,1793.2,4.3258]
[1680476027371,1.1446118,1793.3,1793.2,4.3258]
[1680476029372,0.56049563,1793.3,1793.2,4.3258]
[1680476029578,3.13987138,1793.4,1793.2,4.3258]
[1680476029871,3.69960012,1793.4,1793.3,1.118]
[1680476030271,2.82336837,1793.4,1793.3,1.118]
[1680476030573,3.69960012,1793.4,1793.3,1.118]
[1680476031474,2.82336837,1793.4,1793.3,1.118]
[1680476034574,1.14384491,1793.4,1793.3,1.118]
[1680476035282,1.14384491,1793.4,1793.3,2.59437699]
[1680476035968,0.58411617,1793.5,1793.3,3.59437699]
[1680476036166,0.58411617,1793.5,1793.4,1.118]
[1680476036369,0.58411617,1793.5,1793.4,4.3258]
[1680476037781,1.15206339,1793.5,1793.4,4.3258]
[1680476038976,0.56794722,1793.5,1793.4,4.3258]
[1680476039278,2.28165693,1793.6,1793.4,4.3258]
[1680476039479,1.69754076,1793.6,1793.5,1.118]
[1680476039675,1.69754076,1793.6,1793.5,2.118]
[1680476039877,1.69754076,1793.6,1793.5,1.118]
[1680476040786,0.00365026,1793.6,1793.5,1.118]
[1680476042180,0.57393983,1793.6,1793.5,1.118]
[1680476042386,0.00365026,1793.6,1793.5,1.118]
[1680476044974,0.00365026,1793.6,1793.5,2.118]
[1680476046176,0.54980663,1793.6,1793.5,2.118]
[1680476048486,0.54980663,1793.6,1793.5,1.118]
[1680476048683,0.54980663,1793.6,1793.3,1.47637699]
[1680476048885,1.0,1793.5,1793.3,1.47637699]
[1680476049287,5.90091617,1793.5,1793.3,1.47637699]
[1680476049583,2.69311617,1793.4,1792.8,1.118]
[1680476049786,5.90091617,1793.3,1792.8,1.118]
[1680476049989,1.0,1793.2,1792.8,1.118]
[1680476050185,1.0,1793.2,1792.9,1.07081297]
[1680476050390,3.2078,1793.1,1792.9,1.07081297]
[1680476050583,3.2078,1793.1,1792.8,1.118]
[1680476051381,1.0,1793.0,1792.8,1.118]
[1680476051586,3.2078,1793.1,1792.8,1.118]
[1680476052089,3.2078,1793.1,1792.7,1.118]
[1680476052682,1.0,1793.0,1792.7,1.118]
[1680476052889,1.109,1792.8,1792.4,1.118]
[1680476053195,1.0,1792.7,1792.4,1.118]
[1680476053694,4.2078,1792.7,1792.4,1.118]
[1680476054189,4.2078,1792.7,1792.2,1.122]
[1680476054190,5.90991617,1792.7,1792.2,1.122]
[1680476055590,4.3258,1792.5,1792.1,3.2078]
[1680476055790,1.0,1792.4,1792.1,3.2078]
[1680476057886,4.3258,1792.5,1792.1,3.2078]
[1680476059401,1.0,1792.4,1792.1,3.2078]
[1680476059600,1.109,1792.3,1792.1,3.2078]
[1680476059801,1.109,1792.3,1791.8,1.125]
[1680476059802,1.109,1792.3,1791.9,3.2078]
[1680476060094,1.0,1792.2,1791.8,1.125]
[1680476060290,4.3168,1792.3,1791.8,1.125]
[1680476060492,0.58411617,1792.4,1792.0,1.111]
[1680476060699,1.69311617,1792.5,1792.1,3.2078]
[1680476061203,1.69311617,1792.5,1792.0,1.111]
[1680476061397,2.56934792,1792.5,1792.0,1.111]
[1680476061797,40.8,1792.4,1792.1,3.2078]
[1680476062002,40.8,1792.4,1792.1,4.3188]
[1680476063004,40.8,1792.4,1792.1,1.111]
[1680476063895,44.0078,1792.4,1792.1,1.111]
[1680476065095,44.0078,1792.4,1792.2,0.59010671]
[1680476065495,44.0078,1792.4,1792.1,1.111]
[1680476065905,44.0078,1792.4,1792.2,0.59008336]
[1680476066105,44.0078,1792.4,1792.1,1.111]
[1680476066902,3.2078,1792.4,1792.1,1.111]
[1680476067406,40.8,1792.3,1792.1,1.111]
[1680476073014,40.8,1792.3,1792.1,4.3188]
[1680476075017,2.18417001,1792.5,1792.1,4.3188]
[1680476075216,4.90291617,1792.6,1792.1,4.3188]
[1680476075415,0.58411617,1792.7,1792.5,2.236]
[1680476075616,0.58411617,1792.8,1792.6,1.118]
[1680476075824,4.36275696,1793.0,1792.7,1.118]
[1680476076024,4.36275696,1793.0,1792.9,1.118]
[1680476076414,0.57084079,1793.0,1792.9,1.118]
[1680476076716,4.90991617,1793.1,1792.6,1.118]
[1680476076907,4.90991617,1793.1,1792.9,0.74831682]
[1680476077109,4.90991617,1793.1,1792.6,4.3258]
[1680476077519,4.90991617,1793.1,1792.6,1.118]
[1680476078024,4.90991617,1793.1,1792.6,4.3258]
[1680476078319,3.79191617,1793.1,1792.8,1.118]
[1680476078712,0.58411617,1793.1,1792.8,4.3258]
[1680476078920,3.16220215,1793.2,1792.8,4.3258]
[1680476079322,2.2859704,1793.2,1792.8,4.3258]
[1680476079723,3.16220215,1793.2,1792.8,4.3258]
[1680476080225,3.16220215,1793.2,1792.9,0.9072773]
[1680476080619,3.16220215,1793.2,1792.8,4.3258]
[1680476080924,0.58411617,1793.1,1793.0,0.90725385]
[1680476081231,3.16220215,1793.2,1793.0,0.90725385]
[1680476081420,3.16220215,1793.2,1792.8,1.118]
[1680476081621,0.58411617,1793.1,1792.8,1.118]
[1680476081919,0.58411617,1793.1,1792.9,0.90722483]
[1680476082127,1.14055013,1793.1,1792.9,2.01822483]
[1680476085028,14.3,1793.0,1792.9,2.01822483]
[1680476085236,14.3,1793.0,1792.9,0.90722483]
[1680476085237,14.88411617,1793.0,1792.9,0.90722483]
[1680476085433,16.86934792,1793.0,1792.9,0.90722483]
[1680476085731,16.28723175,1793.0,1792.6,1.118]
[1680476085926,3.78961226,1792.9,1792.6,1.118]
[1680476086127,3.78961226,1792.9,1792.7,0.62593039]
[1680476086331,3.78961226,1792.9,1792.6,1.118]
[1680476087637,4.66584401,1792.9,1792.6,1.118]
[1680476088543,4.3168,1792.7,1792.0,4.3258]
[1680476088731,4.3168,1792.5,1792.0,4.3258]
[1680476089142,40.8,1792.4,1792.0,4.3258]
[1680476090137,41.38199611,1792.4,1792.0,1.118]
[1680476090439,3.2078,1792.3,1792.0,1.118]
[1680476094646,40.8,1792.2,1792.0,1.118]
[1680476095146,40.8,1792.2,1792.1,0.3043132]
[1680476095948,40.8,1792.2,1792.1,1.4223132]
[1680476096444,40.8,1792.2,1792.1,4.6301132]
[1680476105154,40.8,1792.2,1792.1,1.4223132]
[1680476107350,1.45822786,1792.4,1792.1,1.4223132]
[1680476107556,1.45822786,1792.4,1792.2,1.118]
[1680476107958,28.5,1792.3,1792.2,1.47342067]
[1680476112257,0.58199611,1792.4,1792.2,1.47342067]
[1680476112659,19.8,1792.3,1792.2,1.47342067]
[1680476113047,19.8,1792.3,1792.2,2.59142067]
[1680476113253,0.58199611,1792.4,1792.2,2.59142067]
[1680476113453,0.58199611,1792.5,1792.3,4.3258]
[1680476113653,0.58199611,1792.5,1792.4,2.111]
[1680476114063,2.0218369,1792.6,1792.4,2.111]
[1680476114253,2.0218369,1792.6,1792.5,1.118]
[1680476114752,1.45822786,1792.6,1792.5,1.118]
[1680476117565,0.58199611,1792.6,1792.5,1.118]
[1680476117964,0.58199611,1792.6,1792.5,4.3258]
[1680476119980,0.58199611,1792.6,1792.5,5.01222]
[1680476120667,0.58199611,1792.6,1792.5,6.13022]
[1680476121477,1.45822786,1792.7,1792.5,6.13022]
[1680476121678,1.45822786,1792.7,1792.6,2.118]
[1680476121873,0.87623175,1792.7,1792.6,2.118]
[1680476122070,1.45974563,1792.8,1792.6,3.236]
[1680476122276,0.58351388,1792.8,1792.7,5.3188]
[1680476122676,1.45974563,1792.9,1792.7,5.3188]
[1680476122979,1.45974563,1792.9,1792.8,2.118]
[1680476123281,1.45975718,1792.9,1792.8,2.118]
[1680476123576,1.45975718,1792.9,1792.8,3.236]
[1680476123879,0.58352543,1792.9,1792.8,3.236]
[1680476127285,1.27528202,1793.0,1792.8,3.236]
[1680476127482,0.69175659,1793.0,1792.9,6.4348]
[1680476129087,0.69175659,1793.0,1792.9,5.4348]
[1680476129287,0.69175659,1793.0,1792.9,2.234]
[1680476129481,0.69175659,1793.0,1792.9,1.116]
[1680476129880,1.27528202,1793.0,1792.9,1.116]
[1680476130078,0.69175659,1793.0,1792.9,1.116]
[1680476130383,0.69175659,1793.0,1792.9,4.3238]
[1680476130585,0.69175659,1793.0,1792.9,1.116]
[1680476130783,1.27528202,1793.0,1792.9,1.116]
[1680476131385,1.27528202,1793.0,1792.9,4.3238]
[1680476131893,1.27528202,1793.0,1792.8,1.118]
[1680476132189,2.15151377,1793.0,1792.7,4.3258]
[1680476132780,0.58352543,1792.9,1792.7,4.3258]
[1680476133491,2.15151377,1793.0,1792.7,4.3258]
[1680476133891,0.58352543,1792.9,1792.7,4.3258]
[1680476134388,0.58352543,1792.9,1792.7,1.118]
[1680476134889,0.58352543,1792.9,1792.8,0.77821001]
[1680476140493,2.28352543,1792.9,1792.8,0.77821001]
[1680476141200,0.58352543,1792.9,1792.8,0.77821001]
[1680476141892,2.28352543,1792.9,1792.8,0.77821001]
[1680476142098,2.28352543,1792.9,1792.8,1.89621001]
[1680476142691,0.58352543,1792.9,1792.8,1.89621001]
[1680476143195,2.28352543,1792.9,1792.8,1.89621001]
[1680476143396,1.7,1792.9,1792.8,1.89621001]
[1680476143596,2.28352543,1792.9,1792.8,1.89621001]
[1680476143796,1.7,1792.9,1792.8,1.89621001]
[1680476143995,2.28352543,1792.9,1792.8,1.89621001]
[1680476144297,1.45975718,1792.9,1792.8,1.89621001]
[1680476144603,3.85103529,1793.0,1792.8,2.89621001]
[1680476144806,2.97480354,1793.0,1792.9,1.118]
[1680476145703,3.85103529,1793.0,1792.9,1.118]
[1680476145909,3.26798834,1793.0,1792.9,1.118]
[1680476146108,3.851121,1793.0,1792.9,1.118]
[1680476146303,3.26798834,1793.0,1792.9,1.118]
[1680476148510,2.15112315,1793.0,1792.9,1.118]
[1680476149208,1.2748914,1793.0,1792.9,4.3258]
[1680476149804,1.2748914,1793.0,1792.9,5.07946831]
[1680476152107,1.2748914,1793.0,1792.9,2.98966831]
[1680476152314,1.56798834,1793.0,1792.9,2.98966831]
[1680476154606,1.56798834,1793.0,1792.9,1.87166831]
[1680476155609,2.12027292,1793.0,1792.9,1.87166831]
[1680476156010,1.24404117,1793.0,1792.9,1.87166831]
[1680476157113,2.41266032,1793.0,1792.9,1.87166831]
[1680476157314,1.24404117,1793.0,1792.9,1.87166831]
[1680476157508,2.41266032,1793.0,1792.9,1.87166831]
[1680476161111,0.69175659,1793.0,1792.9,6.19746831]
[1680476161416,2.15210512,1793.0,1792.9,6.19746831]
[1680476162014,1.56796571,1793.0,1792.9,6.19746831]
[1680476163313,2.15221378,1793.0,1792.9,6.19746831]
[1680476163514,1.27600466,1793.0,1792.9,6.19746831]
[1680476164219,1.27600466,1793.0,1792.9,7.19533382]
[1680476164419,0.87620912,1793.1,1792.9,7.19533382]
[1680476164420,0.87620912,1793.1,1793.0,1.0]
[1680476164624,0.58438361,1793.1,1793.0,2.69513604]
[1680476164924,3.96120551,1793.4,1793.0,2.69513604]
[1680476164925,3.67316328,1793.4,1793.1,6.187]
[1680476165221,1.75936864,1793.8,1793.3,11.0468]
[1680476165414,2.62922216,1793.7,1793.6,1.118]
[1680476165612,1.16854318,1793.8,1793.6,5.4438]
[1680476165813,0.87490028,1793.8,1793.7,1.118]
[1680476166020,0.87490028,1793.8,1793.6,4.3258]
[1680476166224,2.33568312,1793.8,1793.6,4.3258]
[1680476166419,0.87499836,1793.7,1793.6,4.3258]
[1680476168021,0.87499836,1793.7,1793.6,1.118]
[1680476168324,0.87499836,1793.7,1793.6,4.3258]
[1680476168826,0.58294176,1793.7,1793.6,4.3258]
[1680476171725,2.0142005,1793.8,1793.6,4.3258]
[1680476171925,1.13920214,1793.8,1793.7,1.118]
[1680476172127,2.0142005,1793.8,1793.7,1.118]
[1680476172329,3.71374941,1793.8,1793.7,1.118]
[1680476172530,3.13125874,1793.8,1793.7,1.118]
[1680476173427,2.83853484,1793.8,1793.7,1.118]
[1680476177231,2.25626038,1793.8,1793.7,4.3258]
[1680476177432,2.25626038,1793.8,1793.7,5.3258]
[1680476177936,0.55626038,1793.8,1793.7,5.3258]
[1680476178129,0.68227446,1794.0,1793.8,1.0]
[1680476178329,1.23377917,1794.0,1793.9,4.3258]
[1680476178524,2.93377917,1794.0,1793.9,4.3258]
[1680476179332,2.93377917,1794.0,1793.9,1.118]
[1680476179937,3.80877753,1794.0,1793.9,2.19684304]
[1680476180130,3.22650307,1794.0,1793.9,2.19684304]
[1680476181130,2.35150471,1794.0,1793.9,2.19684304]
[1680476181330,0.1,1794.0,1793.9,3.19684304]
[1680476182332,0.1,1794.0,1793.9,1.07884304]
[1680476182729,0.1,1794.0,1793.3,1.0]